fUSD/lending_fUSD_20240201
["ID","MTS","AMOUNT","RATE_DAILY","PERIOD"]
[313119279,1706767846980,-1000.0,0.00033333,2]
[313119280,1706767846989,-234.0201,0.00033348,4]
[313119281,1706767846999,-151.0201,0.00033398,4]
[313119282,1706767847008,-1000.0,0.000334,2]
[313119283,1706767847018,-1000.0,0.00033424,7]
[313119284,1706767847027,-500.0,0.00033424,2]
[313119285,1706767847037,-526.4,0.00033424,2]
[313119286,1706767847046,-511.25195866,0.00033424,2]
[313119287,1706767847055,-323.61793014,0.00033424,2]
[313119288,1706767847064,-500.0,0.00033424,2]
[313119289,1706767847073,-500.0,0.00033424,2]
[313119290,1706767847082,-500.0,0.00033424,10]
[313119291,1706767847091,-500.0,0.00033424,2]
[313119292,1706767847100,-687.74,0.00033424,2]
[313119293,1706767847109,-1285.63,0.00033424,2]
[313119294,1706767847118,-500.0,0.00033424,2]
[313119295,1706767847127,-172.19884134,0.00033424,2]
[313119296,1706767847137,-561.32,0.00033424,2]
[313119297,1706767847146,-532.91079868,0.00033424,2]
[313119298,1706767847155,-505.32,0.00033424,2]
[313119299,1706767847165,-625.03,0.00033424,2]
[313119300,1706767847174,-516.39411435,0.00033424,2]
[313119301,1706767847183,-500.0,0.00033424,2]
[313119302,1706767847192,-500.0,0.00033424,2]
[313119303,1706767847201,-500.0,0.00033424,2]
[313119304,1706767847210,-500.0,0.00033424,2]
[313119305,1706767847220,-948.27,0.00033424,2]
[313119306,1706767847229,-500.0,0.00033424,2]
[313119307,1706767847238,-971.91,0.00033424,2]
[313119308,1706767847247,-783.15,0.00033424,2]
[313119309,1706767847256,-500.0,0.00033424,2]
[313119310,1706767847265,-1265.28,0.00033424,2]
[313119311,1706767847275,-500.0,0.00033424,2]
[313119312,1706767847284,-500.0,0.00033424,2]
[313119313,1706767847294,-500.0,0.00033424,2]
[313119314,1706767847303,-500.0,0.00033424,2]
[313119315,1706767847312,-500.0,0.00033424,2]
[313119316,1706767847495,-519.59,0.00033424,2]
[313119317,1706767847508,-500.0,0.00033424,2]
[313119318,1706767847517,-1070.42,0.00033424,2]
[313119319,1706767847527,-717.97,0.00033424,2]
[313119320,1706767847536,-500.0,0.00033424,2]
[313119321,1706767847545,-500.0,0.00033424,2]
[313119322,1706767847555,-500.0,0.00033424,2]
[313119323,1706767847564,-182.40772478,0.00033424,2]
[313119324,1706767847573,-921.81,0.00033424,2]
[313119325,1706767847583,-1082.24,0.00033424,7]
[313119326,1706767847592,-500.0,0.00033424,2]
[313119327,1706767847602,-500.0,0.00033424,2]
[313119328,1706767847611,-500.0,0.00033424,2]
[313119329,1706767847620,-206.62501842,0.00033424,2]
[313119330,1706767847630,-500.0,0.00033424,2]
[313119331,1706767847639,-556.79801339,0.00033424,2]
[313119332,1706767847648,-500.0,0.00033424,2]
[313119333,1706767847657,-500.0,0.00033424,2]
[313119334,1706767847666,-500.0,0.00033424,2]
[313119335,1706767847676,-500.0,0.00033424,2]
[313119336,1706767847685,-500.0,0.00033424,2]
[313119337,1706767847694,-500.0,0.00033424,2]
[313119338,1706767847703,-500.0,0.00033424,2]
[313119339,1706767847712,-1403.68,0.00033424,2]
[313119340,1706767847721,-500.0,0.00033424,2]
[313119341,1706767847730,-500.0,0.00033424,2]
[313119342,1706767847739,-328.93503904,0.00033424,2]
[313119343,1706767847756,-171.06496096,0.00033424,2]
[313119344,1706767847766,-500.0,0.00033424,2]
[313119345,1706767847775,-500.0,0.00033424,2]
[313119346,1706767847784,-500.0,0.00033424,2]
[313119347,1706767847793,-500.0,0.00033424,2]
[313119348,1706767847802,-160.32532218,0.00033424,3]
[313119349,1706767847814,-89.8590934,0.00033424,3]
[313119350,1706767847824,-500.0,0.00033424,2]
[313119352,1706767847833,-500.0,0.00033424,2]
[313119354,1706767847842,-500.0,0.00033424,2]
[313119356,1706767847851,-500.0,0.00033424,2]
[313119358,1706767847860,-500.0,0.00033424,2]
[313119360,1706767847873,-500.0,0.00033424,2]
[313119362,1706767847882,-187.01171233,0.00033424,2]
[313119365,1706767847902,-312.98828767,0.00033424,2]
[313119367,1706767847912,-500.0,0.00033424,2]
[313119369,1706767847921,-500.0,0.00033424,2]
[313119371,1706767847931,-485.37201025,0.00033424,2]
[313119390,1706767848106,-14.62798975,0.00033424,2]
[313119392,1706767848116,-278.65391024,0.00033424,2]
[313119404,1706767848220,-297.77608976,0.00033424,2]
[313119406,1706767848230,-439.45247188,0.00033424,2]
[313119407,1706767848243,-60.54752812,0.00033424,2]
[313119408,1706767848254,-500.0,0.00033424,2]
[313119409,1706767848263,-500.0,0.00033424,2]
[313119410,1706767848273,-570.86857171,0.00033424,2]
[313119411,1706767848282,-331.0927876,0.00033424,2]
[313119412,1706767848291,-888.84,0.00033424,2]
[313119413,1706767848300,-500.0,0.00033424,2]
[313119414,1706767848310,-500.0,0.00033424,2]
[313119415,1706767848320,-500.0,0.00033424,2]
[313119416,1706767848329,-500.0,0.00033424,2]
[313119417,1706767848339,-500.0,0.00033424,2]
[313119418,1706767848349,-500.0,0.00033424,2]
[313119419,1706767848359,-500.0,0.00033424,2]
[313119420,1706767848369,-500.0,0.00033424,2]
[313119421,1706767848378,-500.0,0.00033424,2]
[313119422,1706767848388,-500.0,0.00033424,2]
[313119423,1706767848397,-500.0,0.00033424,2]
[313119424,1706767848406,-500.0,0.00033424,2]
[313119425,1706767848415,-500.0,0.00033424,2]
[313119426,1706767848424,-500.0,0.00033424,2]
[313119427,1706767848434,-500.0,0.00033424,2]
[313119428,1706767848443,-500.0,0.00033424,2]
[313119429,1706767848452,-500.0,0.00033424,2]
[313119430,1706767848461,-502.49413192,0.00033424,2]
[313119431,1706767848470,-500.0,0.00033424,2]
[313119432,1706767848479,-211.03797508,0.00033424,2]
[313119433,1706767848488,-498.51414564,0.00033424,2]
[313119434,1706767848497,-500.0,0.00033424,2]
[313119435,1706767848507,-500.0,0.00033424,2]
[313119436,1706767848516,-1324.13,0.00033424,2]
[313119437,1706767848525,-1087.47485993,0.00033424,2]
[313119438,1706767848538,-579.05800849,0.00033424,2]
[313119439,1706767848550,-2929.40713158,0.00033424,2]
[313119440,1706767848559,-500.0,0.00033424,2]
[313119441,1706767848568,-674.55,0.00033424,2]
[313119442,1706767848577,-539.6998578,0.00033424,2]
[313119443,1706767848588,-822.29078517,0.00033424,2]
[313119444,1706767850525,-0.00020312,0.00032676,5]
[313119445,1706767850536,-631.99979688,0.00032676,5]
[313119446,1706767850545,-1692.17,0.00032866,10]
[313119447,1706767850554,-853.94,0.00033424,2]
[313119448,1706767850563,-1000.0,0.00033424,21]
[313119449,1706767850572,-500.0,0.00033424,2]
[313119450,1706767850581,-500.0,0.00033424,2]
[313119451,1706767850590,-500.0,0.00033424,2]
[313119452,1706767850600,-1034.50379533,0.00033424,2]
[313119453,1706767850611,-1804.39620467,0.00033424,2]
[313119454,1706767850620,-500.0,0.00033424,2]
[313119455,1706767850629,-500.0,0.00033424,2]
[313119456,1706767850638,-500.0,0.00033424,2]
[313119457,1706767850647,-292.17829781,0.00033424,2]
[313119458,1706767850656,-246.68432763,0.00033424,2]
[313119459,1706767850770,-1795.49811285,0.00033424,2]
[313119460,1706767850781,-546.91409337,0.00033424,2]
[313119461,1706768695978,1000.0,0.00022,2]
[313119471,1706769032189,-657.7528,0.00022684,14]
[313119472,1706769032199,-155.0,0.00022779,2]
[313119473,1706769032208,-315.18305531,0.0002278,2]
[313119474,1706769032217,-228.85160586,0.00022891,2]
[313119475,1706769032226,-248.33395542,0.00023757,2]
[313119476,1706769032235,-598.1247,0.00023989,2]
[313119477,1706769032244,-252.53800664,0.00023997,2]
[313119478,1706769032254,-155.62723127,0.00023997,2]
[313119479,1706769032267,-155.94824206,0.00023997,2]
[313119480,1706769032276,-291.6711707,0.00023997,2]
[313119481,1706769032285,-204.7712179,0.00023997,2]
[313119482,1706769032294,-155.47103583,0.00023997,2]
[313119483,1706769032305,-247.24143396,0.00023997,2]
[313119484,1706769032314,-483.84706053,0.00023997,2]
[313119485,1706769032323,-267.10082462,0.00023997,2]
[313119486,1706769032333,-267.56927391,0.00023997,2]
[313119487,1706769032342,-277.09025938,0.00023997,2]
[313119488,1706769032352,-297.14623067,0.00023997,2]
[313119489,1706769032362,-364.06260719,0.00023997,2]
[313119490,1706769032371,-155.29274807,0.00023997,2]
[313119491,1706769032380,-447.5188044,0.00023997,2]
[313119492,1706769032390,-155.2539358,0.00023997,2]
[313119493,1706769032399,-500.0,0.00023997,2]
[313119494,1706769032408,-216.05407102,0.00023997,2]
[313119495,1706769032418,-155.40766516,0.00023997,2]
[313119496,1706769032427,-155.38423741,0.00023997,2]
[313119497,1706769032437,-228.83425128,0.00023997,2]
[313119498,1706769032447,-233.6686873,0.00023997,2]
[313119499,1706769032457,-179.96646652,0.00023997,2]
[313119500,1706769032466,-247.89835845,0.00023997,2]
[313119502,1706769032475,-216.75702514,0.00023998,2]
[313119504,1706769032484,-246.62664246,0.00023998,2]
[313119505,1706769032494,-245.86982669,0.00023998,2]
[313119506,1706769032504,-285.91347788,0.00023998,2]
[313119507,1706769032513,-204.18636395,0.00023998,2]
[313119508,1706769032522,-41692.51561563,0.00023999,2]
[313119509,1706769032539,-446.48737761,0.00023999,2]
[313119510,1706769032555,-435.79844913,0.00023999,2]
[313119511,1706769032567,-1069.58567382,0.00023999,2]
[313119512,1706769032579,-3062.44528538,0.00023999,2]
[313119513,1706769032590,-2205.57504085,0.00023999,2]
[313119514,1706769032603,-2305.92735655,0.00023999,2]
[313119515,1706769032614,-410.58063139,0.00023999,2]
[313119516,1706769032627,-1809.51341481,0.00023999,2]
[313119530,1706769038748,-643.1294748,0.00023999,2]
[313119531,1706769038804,-10890.6211417,0.00023999,2]
[313119532,1706769038816,-20521.26197028,0.00023999,2]
[313119533,1706769038860,-591.98575601,0.00023999,2]
[313119534,1706769038871,-5835.77186741,0.00023999,2]
[313119535,1706769038917,-7677.89020334,0.00023999,2]
[313119536,1706769038928,-716.79,0.00023999,2]
[313119537,1706769040757,-1119.993,0.00023999,2]
[313119538,1706769040770,-299.1128838,0.00023999,2]
[313119539,1706769040834,-2799.18,0.00023999,2]
[313119540,1706769040846,-6007.21619384,0.00023999,2]
[313119541,1706769040862,-8270.7666,0.00023999,2]
[313119542,1706769041473,-272.65594049,0.00023999,2]
[313119543,1706769041485,-510.13070881,0.00023999,2]
[313119544,1706769041498,-759.73243039,0.00023999,2]
[313119545,1706769041510,-2531.195,0.00023999,2]
[313119571,1706769043162,-359.05198259,0.00023999,2]
[313119574,1706769043280,-2105.55,0.00023999,2]
[313119575,1706769043293,-1375.37873791,0.00023999,2]
[313119576,1706769043305,-89722.03183571,0.00023999,2]
[313119577,1706769043315,-999.99,0.000249,2]
[313119578,1706769043324,-233.68,0.000249,2]
[313119579,1706769043333,-350.0,0.00025,3]
[313119580,1706769043344,-936.38551018,0.00025,2]
[313119581,1706769043353,-1588.56278984,0.00025,2]
[313119582,1706769043363,-304.42296087,0.00025,2]
[313119583,1706769043372,-2058.09076621,0.00025,2]
[313119584,1706769043386,-208.46122201,0.00025,4]
[313119585,1706769043396,-202.63807571,0.00025,2]
[313119586,1706769043406,-499.99,0.00025,2]
[313119587,1706769043416,-400.0,0.00027,3]
[313119588,1706769043426,-290.40617084,0.00027,2]
[313119589,1706769043436,-494.59,0.00027096,2]
[313119590,1706769043446,-421.55,0.00027364,2]
[313119591,1706769043456,-176.95,0.00027397,2]
[313119592,1706769043465,-500.0,0.000274,2]
[313119593,1706769043475,-375.0,0.000274,2]
[313119594,1706769043486,-176.95,0.00027614,2]
[313119595,1706769043496,-176.95,0.0002783,2]
[313119596,1706769043506,-176.95,0.00028046,2]
[313119597,1706769043515,-176.95,0.00028262,2]
[313119598,1706769043525,-176.95,0.00028479,2]
[313119599,1706769043535,-264.88455642,0.00028509,2]
[313119600,1706769043545,-5600.0,0.000286,2]
[313119601,1706769043555,-2912.0,0.000286,2]
[313119603,1706769043564,-2110.55,0.00028625,2]
[313119606,1706769043574,-419.9,0.00028631,2]
[313119608,1706769043584,-968.2,0.00028648,2]
[313119610,1706769043593,-23900.0,0.00028655,2]
[313119612,1706769043603,-176.95,0.00028695,2]
[313119614,1706769043612,-1000.0,0.00028721,2]
[313119615,1706769043622,-2500.0,0.00028732,3]
[313119617,1706769043632,-250.0,0.00028751,2]
[313119619,1706769043641,-250.0,0.00028757,2]
[313119621,1706769043651,-1641.61,0.00028803,2]
[313119624,1706769043661,-150.0,0.00028864,2]
[313119627,1706769043671,-539.02,0.00028866,2]
[313119630,1706769043680,-160.6,0.00028894,2]
[313119632,1706769043690,-176.95,0.00028911,2]
[313119634,1706769043699,-450.0,0.00029,3]
[313119636,1706769043709,-558.44,0.00029061,2]
[313119638,1706769043718,-160.6,0.00029109,2]
[313119641,1706769043731,-176.95,0.00029128,2]
[313119643,1706769043740,-425.72,0.00029255,2]
[313119645,1706769043749,-166.99,0.00029275,2]
[313119646,1706769043759,-2673.15,0.00029282,2]
[313119647,1706769043769,-1958.8,0.00029282,2]
[313119648,1706769043779,-166.99,0.00029282,2]
[313119649,1706769043788,-160.6,0.00029324,2]
[313119650,1706769043798,-176.95,0.00029344,2]
[313119651,1706769043808,-2673.15,0.00029451,2]
[313119652,1706769043818,-160.6,0.00029539,2]
[313119653,1706769043827,-176.95,0.0002956,2]
[313119654,1706769043836,-2673.15,0.0002962,2]
[313119655,1706769043846,-421.55,0.00029628,2]
[313119656,1706769043855,-160.6,0.00029754,2]
[313119657,1706769043865,-176.95,0.00029777,2]
[313119658,1706769043874,-2673.15,0.00029789,2]
[313119659,1706769043883,-695.34055801,0.000299,4]
[313119660,1706769043893,-2673.15,0.00029958,2]
[313119661,1706769043902,-160.6,0.00029969,2]
[313119662,1706769043912,-176.95,0.00029993,2]
[313119663,1706769043921,-155.0,0.0003,2]
[313119664,1706769043932,-9669.73208063,0.0003,2]
[313119665,1706769043942,-1000.0,0.0003,3]
[313119666,1706769043951,-159.19838367,0.00030107,4]
[313119667,1706769043961,-1904.97840411,0.00030108,4]
[313119668,1706769043971,-1253.06290056,0.00030108,4]
[313119669,1706769043981,-3734.43623754,0.00030109,4]
[313119670,1706769043991,-411.9890993,0.00030109,4]
[313119671,1706769044003,-2673.15,0.00030127,2]
[313119672,1706769044013,-160.6,0.00030184,2]
[313119673,1706769044023,-176.95,0.00030209,2]
[313119674,1706769044035,-2110.55,0.00030269,2]
[313119675,1706769044044,-2673.15,0.00030297,2]
[313119676,1706769044055,-539.02,0.0003031,2]
[313119677,1706769044064,-160.6,0.00030399,2]
[313119678,1706769044073,-176.95,0.00030425,2]
[313119679,1706769044082,-2673.15,0.00030466,2]
[313119680,1706769044095,-15825.39336929,0.0003062,2]
[313119681,1706769044112,-606.39198877,0.0003062,2]
[313119682,1706769044124,-500.0,0.0003062,2]
[313119689,1706769046184,-302.03380715,0.00027397,2]
[313119700,1706769046428,-197.95619285,0.00027397,2]
[313119701,1706769046438,-2355.56464194,0.0003062,2]
[313119702,1706769046447,-415.52,0.0003062,2]
[313119703,1706769046457,-1535.38,0.0003062,2]
[313119704,1706769046467,-2673.15,0.00030635,2]
[313119705,1706769046477,-176.95,0.00030642,2]
[313119706,1706769046486,-2673.15,0.00030804,2]
[313119707,1706769046495,-176.95,0.00030858,2]
[313119708,1706769046505,-309.89710719,0.00030917,2]
[313119709,1706769046515,-500.0,0.00031,3]
[313119710,1706769046525,-208.0,0.00031047,2]
[313119711,1706769046534,-176.95,0.00031074,2]
[313119712,1706769046543,-695.34055794,0.00031093,5]
[313119713,1706769046553,-176.95,0.00031291,2]
[313119714,1706769046563,-226.01,0.00031458,2]
[313119715,1706769046572,-1000.0,0.000315,2]
[313119716,1706769046582,-750.0,0.000315,2]
[313119717,1706769046593,-176.95,0.00031507,2]
[313119718,1706769046602,-180.0,0.00031644,2]
[313119719,1706769046612,-539.02,0.00031753,2]
[313119720,1706769046622,-10297.01040881,0.000318,3]
[313119721,1706769046635,-607.76316145,0.000318,3]
[313119722,1706769047040,-23945.75544164,0.000318,3]
[313119723,1706769047050,-198.94,0.000318,2]
[313119724,1706769047059,-421.55,0.00031892,2]
[313119725,1706769047069,-2110.55,0.00031913,2]
[313119726,1706769047079,-403.7770206,0.00032095,2]
[313119727,1706769047088,-3485.05290119,0.00032158,3]
[313119728,1706769047098,-154.6151656,0.00032168,2]
[313119729,1706769047107,-14646.45694344,0.00032193,3]
[313119730,1706769047835,-1239.75904694,0.00032193,3]
[313119731,1706769059249,157.2176121,0.00022,2]
[313119732,1706769061051,155.0,0.00022,2]
[313119733,1706769062606,155.0,0.00022,2]
[313119734,1706769081236,157.2176121,0.00022,2]
[313119735,1706769084562,155.30019509,0.00022,2]
[313119736,1706769099243,226.62102245,0.00022,2]
[313119744,1706770232480,-358.50513656,0.00024897,2]
[313119745,1706770232489,-2212.65807729,0.00024898,2]
[313119746,1706770232537,-47.54346207,0.00024898,2]
[313119747,1706770232546,-963.06385015,0.000249,2]
[313119748,1706770232556,-350.0,0.00025,3]
[313119749,1706770232565,-201.79095215,0.00027,2]
[313119750,1706770232576,-88.61521869,0.00027,2]
[313119751,1706770232585,-500.0,0.000274,2]
[313119752,1706770232594,-358.31,0.00027918,2]
[313119753,1706770232603,-157.56932951,0.0002853,2]
[313119754,1706770232612,-718.58,0.00028534,2]
[313119755,1706770232621,-8431.92545179,0.00028629,2]
[313119756,1706770232656,-1230.34354417,0.00028629,2]
[313119758,1706770232668,-507.99999975,0.00028629,2]
[313119766,1706770238414,-208.0,0.00027047,2]
[313119767,1706770238423,-2512.94374648,0.00028629,2]
[313119768,1706770238433,-710.55,0.0002863,2]
[313119769,1706770238443,-487.0,0.00028732,2]
[313119770,1706770238452,-157.56932941,0.00028956,2]
[313119771,1706770238461,-157.56932941,0.00029382,2]
[313119772,1706770238471,-172.75,0.0002949,2]
[313119773,1706770238480,-250.0,0.00029716,2]
[313119774,1706770238489,-200.0,0.00029772,2]
[313119775,1706770238498,-49.85023979,0.00029808,2]
[313119776,1706770238511,-107.71908962,0.00029808,2]
[313119777,1706770238519,-356.0,0.00029839,2]
[313119778,1706770238528,-150.0,0.00029847,2]
[313119779,1706770238538,-323.99628746,0.0003,2]
[313119780,1706770238548,-176.00371254,0.0003,2]
[313119781,1706770238557,-155.0,0.00030058,2]
[313119782,1706770238566,-800.0,0.00030059,2]
[313119783,1706770238575,-1055.27,0.00030059,2]
[313119784,1706770238584,-250.0,0.00030133,2]
[313119785,1706770238593,-303.7,0.00030133,2]
[313119786,1706770238602,-1368.0,0.00030133,2]
[313119787,1706770238611,-779.85711224,0.00030146,2]
[313119788,1706770238627,-445.94319877,0.00030146,2]
[313119789,1706770238640,-10492.80968899,0.00030146,2]
[313119790,1706770238652,-358.31,0.00030182,2]
[313119791,1706770238662,-157.56932941,0.00030234,2]
[313119792,1706770238671,-208.0,0.00030342,7]
[313119793,1706770238680,-215.6,0.00030368,2]
[313119794,1706770238690,-1108.12,0.0003062,2]
[313119795,1706770238700,-545.76869859,0.0003062,2]
[313119797,1706770238724,-529.15130141,0.0003062,2]
[313119799,1706770238735,-157.56932941,0.0003066,2]
[313119801,1706770238745,-156.07,0.00030883,2]
[313119803,1706770238754,-1305.232236,0.00031,14]
[313119805,1706770238764,-29914.64144621,0.00031,4]
[313119807,1706770238775,-10098.46212564,0.00031,4]
[313119810,1706770238785,-1000.0,0.00031,2]
[313119811,1706770238795,-157.56932941,0.00031086,2]
[313119813,1706770238805,-354.76,0.00031098,2]
[313119816,1706770238815,-1000.0,0.000315,2]
[313119838,1706770239010,-1000.0,0.000315,2]
[313119840,1706770239020,-308.53,0.00031507,2]
[313119842,1706770239029,-302.25,0.00031507,2]
[313119844,1706770239038,-281.23,0.00031507,2]
[313119846,1706770239047,-150.0,0.00031507,2]
[313119848,1706770239057,-150.0,0.00031507,2]
[313119850,1706770239066,-150.0,0.00031507,2]
[313119852,1706770239076,-150.0,0.00031507,2]
[313119854,1706770239085,-150.0,0.00031507,2]
[313119856,1706770239094,-150.0,0.00031507,2]
[313119858,1706770239103,-150.0,0.00031507,2]
[313119860,1706770239112,-150.0,0.00031507,2]
[313119862,1706770239121,-157.56932941,0.00031512,2]
[313119864,1706770239130,-2844.39888611,0.00031559,2]
[313119866,1706770239139,-1126.66,0.00031593,10]
[313119868,1706770239148,-1966.92,0.00031593,10]
[313119870,1706770239157,-1639.1,0.00031593,10]
[313119872,1706770239166,-38753.70120151,0.00031603,2]
[313119875,1706770239178,-709.85997169,0.00031603,2]
[313119877,1706770239190,-434.98329248,0.00031603,2]
[313119881,1706770239217,-423.356324,0.00031603,2]
[313119883,1706770239228,-18279.21071032,0.00031603,2]
[313119885,1706770239238,-251.8768,0.00031603,2]
[313119887,1706770239247,-686.5077,0.00031679,2]
[313119889,1706770239256,-2440.3302,0.00031679,2]
[313119891,1706770239264,-663.67090366,0.0003168,2]
[313119893,1706770239276,-577.24837893,0.0003168,2]
[313119901,1706770239338,-5219.0829408,0.0003168,2]
[313119979,1706770240963,-1404.10617661,0.0003168,2]
[313119980,1706770240973,-855.69407282,0.0003168,2]
[313119981,1706770241021,-544.13000421,0.0003168,2]
[313119982,1706770241033,-1100.17592297,0.0003168,2]
[313119983,1706770241044,-1055.27,0.00031703,2]
[313119984,1706770241055,-500.0,0.0003177,2]
[313119985,1706770241065,-595.33605946,0.00031778,4]
[313119986,1706770241076,-155.0,0.00031778,4]
[313119987,1706770241085,-606.8978335,0.00031778,5]
[313119988,1706770241096,-250.8272,0.00031779,2]
[313119989,1706770241105,-978.3605,0.00031779,2]
[313119990,1706770241115,-7875.01747356,0.00031779,2]
[313119991,1706770241128,-10322.56986617,0.00031779,2]
[313119992,1706770241139,-413.4909,0.0003178,2]
[313119993,1706770241148,-1000.0,0.0003178,2]
[313119994,1706770241158,-250.2505,0.0003178,2]
[313119995,1706770241168,-381.8336,0.0003178,2]
[313119996,1706770241178,-68341.29332389,0.0003178,2]
[313119997,1706770241742,-1081.09047611,0.0003178,2]
[313119998,1706770241752,-494.1663502,0.0003178,2]
[313119999,1706770241762,-150.0,0.00031814,2]
[313120000,1706770241771,-898.80682402,0.00031862,2]
[313120001,1706770241783,-601.19317598,0.00031862,2]
[313120002,1706770241793,-137.02183902,0.0003187,3]
[313120003,1706770241814,-9635.99999998,0.0003187,3]
[313120004,1706770241826,-2481.3278554,0.0003187,3]
[313120005,1706770241838,-410.000007,0.0003187,3]
[313120028,1706770243399,-2901.81017614,0.0003187,3]
[313120030,1706770243417,-905.05172536,0.0003187,3]
[313120035,1706770243451,-301.60400004,0.0003187,3]
[313120048,1706770243572,-1003.93433306,0.0003187,3]
[313120052,1706770243592,-10530.99389992,0.0003187,3]
[313120059,1706770243650,-295.997814,0.0003187,3]
[313120080,1706770246478,-154.6151656,0.00031752,2]
[313120081,1706770246488,-257.24676928,0.00031869,4]
[313120082,1706770246499,-41.89390918,0.0003187,3]
[313120083,1706770246511,-460.55416769,0.0003187,3]
[313120084,1706770246588,-4231.18843244,0.0003187,3]
[313120085,1706770246646,-445.40532337,0.0003187,3]
[313120086,1706770246706,-851.98612712,0.0003187,3]
[313120087,1706770246719,-1488.3590197,0.0003187,3]
[313120091,1706770291255,-200.0,0.00034,120]
[313120092,1706770300723,-200.0,0.000345,120]
[313120093,1706770300762,-35.0,0.00035,120]
[313120094,1706770405849,2295.36117036,0.00021,2]
[313120095,1706770405875,2834.5,0.00021,2]
[313120096,1706770405898,2834.5,0.00021,2]
[313120097,1706770405926,154.5,0.00021,2]
[313120098,1706770405949,194.5,0.00021,2]
[313120099,1706770405971,9586.67902764,0.00021,2]
[313120100,1706770445170,416.239999,0.0002,2]
[313120101,1706770665657,548.22233641,0.0002,7]
[313120102,1706770691640,405.30764282,0.0002,7]
[313120103,1706770925387,176.8,0.00022,2]
[313120104,1706771315436,199.58,0.00022502,2]
[313120105,1706771358757,-176.8,0.00022548,2]
[313120106,1706771398944,-157.56932941,0.000227,2]
[313120107,1706771398968,-400.0,0.000228,8]
[313120108,1706771398991,-1442.43067059,0.000229,2]
[313120109,1706771399987,-2000.0,0.000229,2]
[313120110,1706771400350,-2000.0,0.000229,2]
[313120111,1706771400662,-2000.0,0.000229,2]
[313120112,1706771401121,-2000.0,0.000229,2]
[313120113,1706771401510,-2000.0,0.000229,2]
[313120114,1706771402418,-2000.0,0.000229,2]
[313120115,1706771402506,-217.10322197,0.000229,2]
[313120116,1706771402531,-395.33308016,0.000229,2]
[313120117,1706771402553,-531.03560426,0.000229,2]
[313120118,1706771402574,-856.52809361,0.000229,2]
[313120119,1706771404168,-750.14755657,0.000229,2]
[313120122,1706771431489,-421.07761078,0.000229,8]
[313120123,1706771431544,-478.92238922,0.000229,8]
[313120124,1706771431555,-154.88740823,0.0002293,2]
[313120125,1706771431565,-524.64327241,0.00022948,2]
[313120126,1706771431577,-741.75546811,0.00022948,2]
[313120127,1706771431599,-340.27690966,0.00022948,2]
[313120128,1706771431609,-189.40059502,0.0002299,2]
[313120129,1706771431618,-457.70481163,0.00022996,2]
[313120130,1706771431630,-1148.97083855,0.00022996,2]
[313120131,1706771431640,-1000.0,0.00022999,2]
[313120132,1706771431653,-2974.54309872,0.00023,2]
[313120133,1706771431669,-357.61614109,0.00023,2]
[313120134,1706771431682,-993.79654298,0.00023,2]
[313120135,1706771431693,-566.4447676,0.00023,2]
[313120136,1706771431706,-13346.13247094,0.00023,2]
[313120137,1706771431718,-601.37849343,0.00023,2]
[313120138,1706771431731,-623.35373877,0.00023,2]
[313120139,1706771431745,-2464.8213102,0.00023,2]
[313120140,1706771431758,-2929.20380186,0.00023,2]
[313120141,1706771431769,-2720.95709496,0.00023,2]
[313120142,1706771431785,-6968.84925178,0.00023,2]
[313120143,1706771431825,-3696.08,0.00023,2]
[313120144,1706771431838,-2842.58542501,0.00023,2]